[Event "2nd FIDE WCC Rapid G10"]
[Site "Minsk"]
[Date "2018.06.22"]
[Round "4"]
[White "Kirdyashkina, Ekaterina"]
[Black "Trifonova, Daria"]
[Result "1-0"]
[ECO "B07"]
[WhiteElo "1463"]
[BlackElo "1129"]
[Annotator "NA RC"]
[PlyCount "65"]
[EventDate "2018.06.22"]
[EventType "rapid"]
[EventCountry "BLR"]
[SourceTitle "playchess.com"]
[Source "ChessBase"]
[SourceQuality "1"]
[TimeControl "600+5"]

1. e4 {[%emt 0:00:00]} d6 {[%emt 0:00:02]} 2. d4 {[%emt 0:00:00]} Nf6 {[%emt 0:00:02]} 3. Nc3 {[%emt 0:00:00]} g6 {[%emt 0:00:01]} 4. Be3 {[%emt 0:00:09]} Bg7 {[%emt 0:00:06]} 5. Nf3 {[%emt 0:00:05]} O-O {[%emt 0:00:04]} 6. h3 {[%emt 0:00:04]} Nbd7 {[%emt 0:00:10]} 7. Bc4 {[%emt 0:00:12]} c6 {[%emt 0:00:02]} 8. O-O {[%emt 0:00:07]} b5 {[%emt 0:00:02]} 9. Bd3 {[%emt 0:00:03]} Qc7 {[%emt 0:00:04]} 10. a3 {[%emt 0:00:16]} e5 {[%emt 0:00:05]} 11. d5 {[%emt 0:00:42]} a6 {[%emt 0:00:29]} 12. dxc6 {[%emt 0:01:03]} Qxc6 {[%emt 0:00:05]} 13. Qe2 {[%emt 0:00:38]} d5 {[%emt 0:00:17]} 14. exd5 {[%emt 0:00:29]} Nxd5 {[%emt 0:00:07]} 15. Nxd5 {[%emt 0:00:56]} Qxd5 {[%emt 0:00:05]} 16. Nd2 {[%emt 0:00:17]} Qe6 {[%emt 0:00:28]} 17. Be4 {[%emt 0:00:04]} Rb8 {[%emt 0:00:07]} 18. Ba7 {[%emt 0:00:26]} Bb7 {[%emt 0:00:18]} 19. Bxb8 Bxe4 {[%emt 0:00:06]} 20. Nxe4 {[%emt 0:00:37]} Rxb8 {[%emt 0:00:23]} 21. Qd3 {[%emt 0:00:46]} f5 {[%emt 0:00:17]} 22. Ng5 {[%emt 0:00:04]} Qe7 {[%emt 0:00:07]} 23. Qd5+ {[%emt 0:00:03]} Kh8 {[%emt 0:00:10]} 24. Nf7+ {[%emt 0:00:02]} Kg8 {[%emt 0:00:19]} 25. Nxe5+ {[%emt 0:00:02]} Kf8 {[%emt 0:00:10]} 26. Nxd7+ {[%emt 0:00:01]} Ke8 {[%emt 0:00:06]} 27. Nxb8 {[%emt 0:00:02]} Qc7 {[%emt 0:00:13]} 28. Rfe1+ {[%emt 0:00:05]} Kf8 {[%emt 0:00:04]} 29. Nd7+ {[%emt 0:00:04]} Qxd7 {[%emt 0:00:05]} 30. Qxd7 {[%emt 0:00:01]} Kg8 {[%emt 0:02:10]} 31. Qe6+ {[%emt 0:00:06]} Kh8 {[%emt 0:00:07]} 32. Qe8+ {[%emt 0:00:02]} Bf8 {[%emt 0:00:02]} 33. Qxf8# {[%emt 0:00:01]} 1-0

[Event "2nd FIDE WCC Rapid G10"]
[Site "Minsk"]
[Date "2018.06.22"]
[Round "4"]
[White "Zavivaeva, Evelina"]
[Black "Kleymenova, Valeria"]
[Result "0-1"]
[ECO "D11"]
[WhiteElo "1390"]
[BlackElo "1669"]
[Annotator "NA RC"]
[PlyCount "59"]
[EventDate "2018.06.22"]
[EventType "rapid"]
[EventCountry "BLR"]
[SourceTitle "playchess.com"]
[Source "ChessBase"]
[SourceQuality "1"]
[TimeControl "600+5"]

1. d4 {[%emt 0:00:01]} d5 {[%emt 0:00:01]} 2. c4 {[%emt 0:00:01]} c6 {[%emt 0:00:02]} 3. Nf3 {[%emt 0:00:05]} e6 {[%emt 0:00:04]} 4. Nc3 {[%emt 0:00:01]} f5 {[%emt 0:00:03]} 5. Bg5 {[%emt 0:00:04]} Nf6 {[%emt 0:00:03]} 6. e3 {[%emt 0:00:05]} Bd6 {[%emt 0:00:03]} 7. Be2 {[%emt 0:00:38]} O-O {[%emt 0:00:04]} 8. Qc2 {[%emt 0:00:18]} Nbd7 {[%emt 0:00:18]} 9. O-O-O {[%emt 0:01:33]} a6 {[%emt 0:00:04]} 10. c5 {[%emt 0:00:11]} Bc7 {[%emt 0:00:03]} 11. h4 {[%emt 0:00:23]} e5 {[%emt 0:01:00]} 12. h5 {[%emt 0:00:32]} Rb8 {[%emt 0:00:37]} 13. Nh4 {[%emt 0:03:35]} Qe8 {[%emt 0:02:30]} 14. Nxf5 {[%emt 0:03:33]} e4 {[%emt 0:00:38]} 15. Nh4 {[%emt 0:00:07]} b6 16. cxb6 {[%emt 0:00:03]} Rxb6 {[%emt 0:00:26]} 17. g3 {[%emt 0:00:04]} Qf7 {[%emt 0:00:23]} 18. Ng2 {[%emt 0:00:03]} a5 {[%emt 0:00:25]} 19. Nf4 {[%emt 0:00:10]} Ba6 {[%emt 0:00:11]} 20. Na4 {[%emt 0:00:04]} Bxe2 {[%emt 0:00:10]} 21. Nxe2 Ra6 {[%emt 0:00:13]} 22. Nc5 {[%emt 0:00:09]} Nxc5 {[%emt 0:00:07]} 23. Qxc5 {[%emt 0:00:04]} Rb8 {[%emt 0:00:20]} 24. Rd2 {[%emt 0:00:08]} Rb5 {[%emt 0:00:12]} 25. Qc2 {[%emt 0:00:03]} Bd6 {[%emt 0:00:06]} 26. a3 {[%emt 0:00:04]} c5 {[%emt 0:00:31]} 27. Nc3 {[%emt 0:00:02]} Rbb6 {[%emt 0:00:10]} 28. dxc5 {[%emt 0:00:05]} Bxc5 {[%emt 0:00:05]} 29. Bxf6 {[%emt 0:00:08]} gxf6 {[%emt 0:00:23]} 30. Nxd5 {[%emt 0:00:08]} 0-1

[Event "2nd FIDE WCC Rapid G10"]
[Site "Minsk"]
[Date "2018.06.22"]
[Round "4"]
[White "Darmaeva, Nomina"]
[Black "Nandin-Erdene, Davaademberel"]
[Result "1-0"]
[ECO "B30"]
[WhiteElo "1388"]
[BlackElo "1491"]
[Annotator "NA RC"]
[PlyCount "103"]
[EventDate "2018.06.22"]
[EventType "rapid"]
[EventCountry "BLR"]
[SourceTitle "playchess.com"]
[Source "ChessBase"]
[SourceQuality "1"]
[TimeControl "600+5"]

1. e4 {[%emt 0:00:00]} c5 {[%emt 0:00:01]} 2. Nf3 {[%emt 0:00:01]} Nc6 {[%emt 0:00:01]} 3. c3 {[%emt 0:00:01]} e6 {[%emt 0:00:31]} 4. d4 {[%emt 0:00:05]} cxd4 {[%emt 0:00:02]} 5. cxd4 {[%emt 0:00:01]} Nf6 {[%emt 0:00:05]} 6. Nc3 {[%emt 0:00:02]} d6 {[%emt 0:00:46]} 7. Bd3 {[%emt 0:00:32]} Be7 {[%emt 0:00:05]} 8. O-O {[%emt 0:01:03]} O-O {[%emt 0:00:05]} 9. Qe2 {[%emt 0:00:17]} h6 {[%emt 0:00:38]} 10. e5 {[%emt 0:00:11]} Nd7 {[%emt 0:01:16]} 11. Qe4 {[%emt 0:02:04]} f5 {[%emt 0:00:34]} 12. Qe2 {[%emt 0:00:48]} dxe5 {[%emt 0:00:14]} 13. dxe5 {[%emt 0:00:22]} Ndxe5 {[%emt 0:01:23]} 14. Nxe5 {[%emt 0:00:20]} Nxe5 {[%emt 0:00:01]} 15. Bc2 {[%emt 0:01:26]} Nc6 {[%emt 0:01:30]} 16. Rd1 {[%emt 0:00:21]} Qc7 {[%emt 0:00:10]} 17. g3 {[%emt 0:00:57]} Rd8 {[%emt 0:00:16]} 18. Bf4 {[%emt 0:00:07]} e5 {[%emt 0:01:44]} 19. Be3 {[%emt 0:01:39]} f4 {[%emt 0:01:22]} 20. gxf4 {[%emt 0:00:53]} exf4 {[%emt 0:00:03]} 21. Qc4+ {[%emt 0:00:04]} Kh8 {[%emt 0:00:18]} 22. Bxf4 {[%emt 0:00:03]} Qb6 {[%emt 0:00:11]} 23. Nd5 {[%emt 0:00:03]} Qc5 {[%emt 0:00:08]} 24. Qxc5 {[%emt 0:00:15]} Bxc5 {[%emt 0:00:01]} 25. Nc7 {[%emt 0:00:08]} Rxd1+ {[%emt 0:00:03]} 26. Rxd1 {[%emt 0:00:01]} Rb8 {[%emt 0:00:18]} 27. Ne6 {[%emt 0:00:06]} Bxe6 {[%emt 0:00:19]} 28. Bxb8 {[%emt 0:00:02]} Nxb8 {[%emt 0:00:08]} 29. Rd8+ {[%emt 0:00:02]} Bg8 {[%emt 0:00:01]} 30. Rxb8 {[%emt 0:00:02]} Bd6 {[%emt 0:00:12]} 31. Rc8 {[%emt 0:00:04]} g5 {[%emt 0:00:05]} 32. Bb3 {[%emt 0:00:02]} Kg7 {[%emt 0:00:07]} 33. Rxg8+ {[%emt 0:00:02]} Kf6 {[%emt 0:00:01]} 34. Re8 {[%emt 0:00:06]} Kf5 {[%emt 0:00:05]} 35. Re6 {[%emt 0:00:04]} Be5 {[%emt 0:00:02]} 36. Re7 {[%emt 0:00:04]} Bxb2 {[%emt 0:00:02]} 37. Rxb7 {[%emt 0:00:01]} Be5 {[%emt 0:00:04]} 38. Rxa7 {[%emt 0:00:05]} Ke4 {[%emt 0:00:01]} 39. Rh7 {[%emt 0:00:03]} Kf3 {[%emt 0:00:06]} 40. Rxh6 {[%emt 0:00:07]} Bd4 {[%emt 0:00:01]} 41. Kf1 {[%emt 0:00:07]} Bxf2 {[%emt 0:00:02]} 42. Rf6+ {[%emt 0:00:01]} Kg4 {[%emt 0:00:12]} 43. Rxf2 {[%emt 0:00:02]} Kh4 {[%emt 0:00:07]} 44. a4 {[%emt 0:00:02]} Kh3 {[%emt 0:00:02]} 45. a5 {[%emt 0:00:05]} g4 {[%emt 0:00:02]} 46. a6 {[%emt 0:00:01]} g3 {[%emt 0:00:02]} 47. hxg3 {[%emt 0:00:01]} Kxg3 {[%emt 0:00:01]} 48. a7 {[%emt 0:00:01]} Kg4 {[%emt 0:00:06]} 49. Be6+ {[%emt 0:00:04]} Kg5 {[%emt 0:00:02]} 50. a8=Q {[%emt 0:00:03]} Kh6 {[%emt 0:00:13]} 51. Qg8 {[%emt 0:00:04]} Kh5 {[%emt 0:00:14]} 52. Rh2# {[%emt 0:00:01]} 1-0

[Event "2nd FIDE WCC Rapid G10"]
[Site "Minsk"]
[Date "2018.06.22"]
[Round "4"]
[White "Khamdamova, Afruza"]
[Black "Kobak, Polina"]
[Result "1-0"]
[ECO "C11"]
[WhiteElo "1383"]
[BlackElo "1336"]
[Annotator "NA"]
[PlyCount "71"]
[EventDate "2018.06.22"]
[EventType "rapid"]
[EventCountry "BLR"]
[SourceTitle "playchess.com"]
[Source "ChessBase"]
[SourceQuality "1"]
[TimeControl "600+5"]

1. e4 {[%emt 0:00:00]} e6 {[%emt 0:00:01]} 2. d4 {[%emt 0:00:00]} d5 {[%emt 0:00:02]} 3. Nc3 {[%emt 0:00:00]} Nf6 {[%emt 0:00:02]} 4. exd5 {[%emt 0:00:01]} exd5 {[%emt 0:00:03]} 5. Bd3 {[%emt 0:00:01]} c5 {[%emt 0:00:16]} 6. dxc5 {[%emt 0:00:31]} Bxc5 {[%emt 0:00:10]} 7. Nf3 {[%emt 0:00:02]} O-O {[%emt 0:00:06]} 8. O-O {[%emt 0:00:01]} Nc6 {[%emt 0:00:11]} 9. Bg5 {[%emt 0:00:03]} Be7 {[%emt 0:00:14]} 10. h3 {[%emt 0:00:09]} h6 {[%emt 0:00:04]} 11. Bh4 {[%emt 0:00:04]} Be6 {[%emt 0:00:08]} 12. Ne2 {[%emt 0:01:03]} Ne4 {[%emt 0:00:31]} 13. Bxe7 {[%emt 0:00:10]} Qxe7 {[%emt 0:00:07]} 14. Nf4 {[%emt 0:00:32]} Rad8 {[%emt 0:00:43]} 15. Qe2 {[%emt 0:03:09]} Bf5 {[%emt 0:00:30]} 16. Rfe1 {[%emt 0:00:17]} Rfe8 {[%emt 0:00:43]} 17. Nd2 {[%emt 0:01:40]} Nxd2 {[%emt 0:00:49]} 18. Qxd2 {[%emt 0:00:02]} Qd7 {[%emt 0:00:05]} 19. Rxe8+ {[%emt 0:00:06]} Rxe8 {[%emt 0:00:05]} 20. Bxf5 {[%emt 0:00:02]} Qxf5 {[%emt 0:00:02]} 21. Nxd5 {[%emt 0:00:04]} Qe5 {[%emt 0:00:36]} 22. c4 {[%emt 0:00:15]} Rd8 {[%emt 0:00:34]} 23. Re1 {[%emt 0:00:08]} Qd6 {[%emt 0:00:31]} 24. Qc3 {[%emt 0:00:11]} Qd7 {[%emt 0:01:12]} 25. b4 {[%emt 0:00:13]} Re8 {[%emt 0:00:13]} 26. Rd1 {[%emt 0:00:11]} Qf5 {[%emt 0:00:46]} 27. b5 {[%emt 0:00:14]} Re2 {[%emt 0:00:57]} 28. Qg3 {[%emt 0:00:01]} Qc2 {[%emt 0:00:47]} 29. Rf1 {[%emt 0:00:11]} Nd4 {[%emt 0:00:31]} 30. Ne3 {[%emt 0:00:23]} Qxa2 {[%emt 0:00:51]} 31. Qb8+ {[%emt 0:00:05]} Kh7 {[%emt 0:00:02]} 32. Qxb7 {[%emt 0:00:04]} Nb3 {[%emt 0:00:22]} 33. Qxf7 {[%emt 0:00:47]} Nd2 {[%emt 0:00:04]} 34. Rd1 {[%emt 0:00:04]} Nb3 {[%emt 0:00:18]} 35. Qf5+ {[%emt 0:00:07]} Kh8 {[%emt 0:00:07]} 36. Rd8# {[%emt 0:00:02]} 1-0

[Event "2nd FIDE WCC Rapid G10"]
[Site "Minsk"]
[Date "2018.06.22"]
[Round "4"]
[White "Ho, Ngoc Vy"]
[Black "Bykovskikh, Ekaterina"]
[Result "1-0"]
[ECO "D45"]
[WhiteElo "1275"]
[BlackElo "1360"]
[Annotator "NA RC"]
[PlyCount "109"]
[EventDate "2018.06.22"]
[EventType "rapid"]
[EventCountry "BLR"]
[SourceTitle "playchess.com"]
[Source "ChessBase"]
[SourceQuality "1"]
[TimeControl "600+5"]

1. d4 {[%emt 0:00:00]} d5 {[%emt 0:00:01]} 2. c4 {[%emt 0:00:01]} e6 {[%emt 0:00:02]} 3. Nf3 {[%emt 0:00:02]} Nf6 {[%emt 0:00:01]} 4. Nc3 {[%emt 0:00:01]} Nbd7 {[%emt 0:00:11]} 5. e3 {[%emt 0:00:02]} c6 {[%emt 0:00:14]} 6. Qc2 {[%emt 0:00:01]} b6 {[%emt 0:00:10]} 7. Bd3 {[%emt 0:00:03]} Bd6 {[%emt 0:00:07]} 8. O-O {[%emt 0:00:03]} O-O {[%emt 0:00:02]} 9. e4 {[%emt 0:00:01]} dxe4 {[%emt 0:00:05]} 10. Nxe4 {[%emt 0:00:02]} Bc7 {[%emt 0:00:15]} 11. Nxf6+ {[%emt 0:00:10]} Nxf6 {[%emt 0:00:02]} 12. c5 {[%emt 0:00:04]} Bb7 {[%emt 0:00:11]} 13. Bg5 {[%emt 0:00:02]} h6 {[%emt 0:00:10]} 14. Bh4 {[%emt 0:00:04]} Qd7 {[%emt 0:00:42]} 15. Rad1 {[%emt 0:00:11]} Nd5 {[%emt 0:00:44]} 16. a3 {[%emt 0:00:22]} Rfe8 {[%emt 0:01:08]} 17. Rfe1 {[%emt 0:00:02]} Rac8 {[%emt 0:00:04]} 18. Ne5 {[%emt 0:00:59]} Bxe5 19. Rxe5 {[%emt 0:00:23]} Ne7 {[%emt 0:01:11]} 20. Qe2 {[%emt 0:00:31]} Nf5 {[%emt 0:01:09]} 21. Qg4 {[%emt 0:02:17]} Nxh4 {[%emt 0:01:01]} 22. Qxh4 {[%emt 0:00:04]} Qe7 {[%emt 0:00:07]} 23. Qg4 {[%emt 0:00:04]} Rcd8 {[%emt 0:00:30]} 24. Rh5 {[%emt 0:01:11]} Qf6 {[%emt 0:00:46]} 25. b4 {[%emt 0:00:42]} Rd7 26. Re5 {[%emt 0:01:17]} Red8 {[%emt 0:01:26]} 27. Bc2 {[%emt 0:00:56]} Ba6 {[%emt 0:00:25]} 28. Qe4 {[%emt 0:00:13]} Bb7 {[%emt 0:01:01]} 29. h3 {[%emt 0:01:28]} bxc5 {[%emt 0:00:18]} 30. bxc5 {[%emt 0:00:02]} Kf8 {[%emt 0:00:19]} 31. Ba4 {[%emt 0:00:09]} Rc7 {[%emt 0:00:06]} 32. Rd3 {[%emt 0:00:07]} Kg8 {[%emt 0:00:08]} 33. Rf3 {[%emt 0:00:02]} Qg6 {[%emt 0:00:04]} 34. Qxg6 {[%emt 0:00:02]} fxg6 {[%emt 0:00:02]} 35. Rxe6 {[%emt 0:00:08]} Rxd4 {[%emt 0:00:02]} 36. Bb3 {[%emt 0:00:01]} Rd8 {[%emt 0:00:02]} 37. Rxc6+ {[%emt 0:00:03]} Kh7 {[%emt 0:00:04]} 38. Rxc7 {[%emt 0:00:03]} Bxf3 {[%emt 0:00:01]} 39. gxf3 {[%emt 0:00:02]} Rb8 {[%emt 0:00:02]} 40. Bc2 {[%emt 0:00:09]} a5 {[%emt 0:00:04]} 41. Ra7 {[%emt 0:00:04]} Rb5 {[%emt 0:00:08]} 42. Rc7 {[%emt 0:00:23]} Rb2 {[%emt 0:00:08]} 43. Be4 {[%emt 0:00:01]} Ra2 {[%emt 0:00:09]} 44. Rc6 {[%emt 0:00:05]} h5 {[%emt 0:00:16]} 45. Rxg6 {[%emt 0:00:04]} Kg8 {[%emt 0:00:02]} 46. Bd5+ {[%emt 0:00:06]} Kf8 {[%emt 0:00:01]} 47. Bxa2 {[%emt 0:00:01]} Ke7 {[%emt 0:00:02]} 48. c6 {[%emt 0:00:01]} Kd8 {[%emt 0:00:02]} 49. Rxg7 {[%emt 0:00:04]} Kc8 {[%emt 0:00:01]} 50. c7 {[%emt 0:00:02]} Kb7 {[%emt 0:00:02]} 51. Be6 {[%emt 0:00:02]} Kb6 {[%emt 0:00:02]} 52. c8=Q {[%emt 0:00:03]} Kb5 {[%emt 0:00:02]} 53. Rb7+ {[%emt 0:00:02]} Ka4 {[%emt 0:00:03]} 54. Qc4+ {[%emt 0:00:04]} Kxa3 {[%emt 0:00:19]} 55. Qb3# {[%emt 0:00:01]} 1-0

[Event "2nd FIDE WCC Rapid G10"]
[Site "Minsk"]
[Date "2018.06.22"]
[Round "4"]
[White "Ponomareva, Varvara"]
[Black "Edithso, Samantha"]
[Result "0-1"]
[ECO "E90"]
[WhiteElo "1262"]
[BlackElo "1714"]
[Annotator "NA RC"]
[PlyCount "62"]
[EventDate "2018.06.22"]
[EventType "rapid"]
[EventCountry "BLR"]
[SourceTitle "playchess.com"]
[Source "ChessBase"]
[SourceQuality "1"]
[TimeControl "600+5"]

1. d4 {[%emt 0:00:00]} Nf6 {[%emt 0:00:03]} 2. c4 {[%emt 0:00:00]} g6 {[%emt 0:00:02]} 3. Nc3 {[%emt 0:00:00]} Bg7 {[%emt 0:00:02]} 4. e4 {[%emt 0:00:01]} d6 {[%emt 0:00:02]} 5. Nf3 {[%emt 0:00:02]} O-O {[%emt 0:00:03]} 6. Bg5 {[%emt 0:00:01]} c5 {[%emt 0:00:20]} 7. d5 {[%emt 0:00:10]} Bg4 {[%emt 0:00:09]} 8. h3 {[%emt 0:00:06]} Bxf3 {[%emt 0:00:02]} 9. Qxf3 {[%emt 0:00:03]} Nbd7 {[%emt 0:00:03]} 10. Qe3 {[%emt 0:00:24]} Qb6 {[%emt 0:00:07]} 11. O-O-O {[%emt 0:00:36]} a6 {[%emt 0:00:09]} 12. f4 {[%emt 0:00:21]} Qc7 {[%emt 0:00:08]} 13. Re1 {[%emt 0:00:27]} h6 {[%emt 0:00:13]} 14. Bxf6 {[%emt 0:00:25]} Bxf6 {[%emt 0:00:02]} 15. g4 {[%emt 0:00:13]} Bg7 {[%emt 0:00:18]} 16. h4 {[%emt 0:00:32]} Rae8 {[%emt 0:00:35]} 17. f5 {[%emt 0:01:16]} Ne5 {[%emt 0:00:08]} 18. Qg3 {[%emt 0:01:16]} Rb8 {[%emt 0:01:17]} 19. fxg6 {[%emt 0:00:11]} fxg6 {[%emt 0:00:09]} 20. Be2 {[%emt 0:00:42]} b5 {[%emt 0:00:19]} 21. cxb5 {[%emt 0:00:10]} axb5 {[%emt 0:00:03]} 22. Nxb5 {[%emt 0:00:59]} Qa5 {[%emt 0:00:04]} 23. Qa3 {[%emt 0:00:20]} Rxb5 {[%emt 0:00:12]} 24. Bxb5 {[%emt 0:00:06]} Qxb5 {[%emt 0:00:01]} 25. Kb1 {[%emt 0:00:31]} Nc4 {[%emt 0:00:03]} 26. Qb3 {[%emt 0:00:11]} Nd2+ {[%emt 0:00:01]} 27. Kc2 {[%emt 0:00:22]} Nxb3 {[%emt 0:00:04]} 28. axb3 {[%emt 0:00:03]} Rf2+ {[%emt 0:00:03]} 29. Kc1 {[%emt 0:00:10]} Qd3 {[%emt 0:00:12]} 30. Re2 {[%emt 0:00:11]} Qxe2 {[%emt 0:00:04]} 31. g5 {[%emt 0:00:09]} Qc2# {[%emt 0:00:02]} 0-1

[Event "2nd FIDE WCC Rapid G10"]
[Site "Minsk"]
[Date "2018.06.23"]
[Round "5"]
[White "Kleymenova, Valeria"]
[Black "Shvedova, Alexandra"]
[Result "0-1"]
[ECO "D00"]
[WhiteElo "1669"]
[BlackElo "1758"]
[Annotator "NA"]
[PlyCount "118"]
[EventDate "2018.06.22"]
[EventType "rapid"]
[EventCountry "BLR"]
[SourceTitle "playchess.com"]
[Source "ChessBase"]
[SourceQuality "1"]
[TimeControl "600+5"]

1. d4 {[%emt 0:00:00]} d5 {[%emt 0:00:00]} 2. Bf4 {[%emt 0:00:00]} Nf6 {[%emt 0:00:02]} 3. e3 {[%emt 0:00:03]} c5 {[%emt 0:00:11]} 4. c3 {[%emt 0:00:04]} Nc6 {[%emt 0:00:04]} 5. Nf3 {[%emt 0:00:04]} Bf5 {[%emt 0:00:06]} 6. Bd3 {[%emt 0:00:41]} Bg6 {[%emt 0:00:11]} 7. O-O {[%emt 0:00:54]} e6 {[%emt 0:00:01]} 8. Qe2 {[%emt 0:01:04]} Be7 {[%emt 0:00:06]} 9. Nbd2 {[%emt 0:00:10]} O-O {[%emt 0:00:06]} 10. h3 {[%emt 0:00:10]} Qb6 {[%emt 0:00:27]} 11. Rab1 {[%emt 0:00:47]} Qa5 {[%emt 0:00:59]} 12. a3 {[%emt 0:00:52]} Qd8 {[%emt 0:00:25]} 13. Rfe1 {[%emt 0:00:16]} a6 {[%emt 0:00:38]} 14. Ne5 {[%emt 0:00:28]} Nxe5 {[%emt 0:00:31]} 15. Bxe5 {[%emt 0:00:13]} Nd7 {[%emt 0:00:28]} 16. Bg3 {[%emt 0:00:26]} Nf6 {[%emt 0:00:43]} 17. Nf3 {[%emt 0:00:30]} Ne4 {[%emt 0:00:12]} 18. Bf4 {[%emt 0:00:40]} f6 {[%emt 0:00:53]} 19. Nd2 {[%emt 0:00:32]} Nxd2 {[%emt 0:00:38]} 20. Qxd2 {[%emt 0:00:05]} Bxd3 {[%emt 0:00:12]} 21. Qxd3 {[%emt 0:00:02]} Bd6 {[%emt 0:00:01]} 22. Bxd6 {[%emt 0:00:13]} Qxd6 {[%emt 0:00:01]} 23. Rbd1 {[%emt 0:00:10]} Rad8 {[%emt 0:00:04]} 24. e4 {[%emt 0:00:32]} cxd4 {[%emt 0:02:23]} 25. Qxd4 {[%emt 0:00:16]} Qc7 {[%emt 0:00:20]} 26. exd5 {[%emt 0:00:54]} Rxd5 {[%emt 0:00:01]} 27. Qe4 {[%emt 0:00:34]} Re5 {[%emt 0:00:02]} 28. Qa4 {[%emt 0:00:24]} Rxe1+ {[%emt 0:00:03]} 29. Rxe1 {[%emt 0:00:02]} e5 {[%emt 0:00:07]} 30. Qb3+ {[%emt 0:00:10]} Qf7 {[%emt 0:00:01]} 31. Qb4 {[%emt 0:00:09]} Rd8 {[%emt 0:00:09]} 32. f4 {[%emt 0:00:28]} Re8 {[%emt 0:01:09]} 33. Qa4 {[%emt 0:00:19]} Qe6 {[%emt 0:00:15]} 34. fxe5 {[%emt 0:00:13]} fxe5 {[%emt 0:00:02]} 35. Rf1 {[%emt 0:00:06]} b5 {[%emt 0:00:08]} 36. Qe4 {[%emt 0:00:04]} Qb6+ {[%emt 0:00:04]} 37. Kh2 {[%emt 0:00:02]} Qe6 {[%emt 0:00:15]} 38. Rf2 {[%emt 0:00:11]} Qb6 {[%emt 0:00:03]} 39. Qd5+ {[%emt 0:00:08]} Qe6 {[%emt 0:00:02]} 40. Qe4 {[%emt 0:00:02]} Qb6 {[%emt 0:00:01]} 41. Re2 {[%emt 0:00:02]} Qe6 {[%emt 0:00:05]} 42. Qb4 {[%emt 0:00:04]} Qe7 {[%emt 0:00:04]} 43. Qb3+ {[%emt 0:00:03]} Qe6 {[%emt 0:00:01]} 44. Qc2 {[%emt 0:00:02]} Qd6 {[%emt 0:00:05]} 45. Qe4 {[%emt 0:00:03]} Qe6 {[%emt 0:00:02]} 46. Rd2 {[%emt 0:00:02]} Qh6 {[%emt 0:00:13]} 47. Qd5+ {[%emt 0:00:08]} Qe6 {[%emt 0:00:01]} 48. Qb7 {[%emt 0:00:09]} e4 {[%emt 0:00:13]} 49. Qa7 {[%emt 0:00:12]} e3 {[%emt 0:00:04]} 50. Rd7 {[%emt 0:00:10]} Qe5+ {[%emt 0:00:01]} 51. Kh1 {[%emt 0:00:02]} e2 {[%emt 0:00:05]} 52. Qg1 {[%emt 0:00:12]} e1=Q {[%emt 0:00:03]} 53. Qxe1 {[%emt 0:00:02]} Qxe1+ {[%emt 0:00:01]} 54. Kh2 {[%emt 0:00:00]} Qe5+ {[%emt 0:00:02]} 55. Kh1 {[%emt 0:00:01]} Qf4 {[%emt 0:00:01]} 56. Rd8 Rxd8 {[%emt 0:00:02]} 57. g3 {[%emt 0:00:05]} Qf3+ {[%emt 0:00:01]} 58. Kh2 {[%emt 0:00:01]} Rd2+ {[%emt 0:00:02]} 59. Kg1 {[%emt 0:00:01]} Qg2# {[%emt 0:00:01]} 0-1

[Event "2nd FIDE WCC Rapid G10"]
[Site "Minsk"]
[Date "2018.06.23"]
[Round "5"]
[White "Zhapova, Yana"]
[Black "Svergina, Sofya"]
[Result "1-0"]
[ECO "C07"]
[WhiteElo "1597"]
[BlackElo "1316"]
[Annotator "NA"]
[PlyCount "95"]
[EventDate "2018.06.22"]
[EventType "rapid"]
[EventCountry "BLR"]
[SourceTitle "playchess.com"]
[Source "ChessBase"]
[SourceQuality "1"]
[TimeControl "600+5"]

1. e4 {[%emt 0:00:00]} e6 {[%emt 0:00:01]} 2. d4 {[%emt 0:00:00]} d5 {[%emt 0:00:01]} 3. Nd2 {[%emt 0:00:00]} c5 {[%emt 0:00:09]} 4. exd5 {[%emt 0:00:02]} Qxd5 {[%emt 0:00:04]} 5. Ngf3 {[%emt 0:00:02]} Nf6 {[%emt 0:00:28]} 6. Bc4 {[%emt 0:00:03]} Qd8 {[%emt 0:00:06]} 7. O-O {[%emt 0:00:03]} cxd4 {[%emt 0:00:07]} 8. Nb3 {[%emt 0:00:01]} Nc6 {[%emt 0:00:15]} 9. Nbxd4 {[%emt 0:00:01]} Nxd4 {[%emt 0:00:06]} 10. Nxd4 {[%emt 0:00:01]} Be7 {[%emt 0:00:12]} 11. Be3 {[%emt 0:00:27]} O-O {[%emt 0:00:05]} 12. Qe2 {[%emt 0:00:06]} Qc7 {[%emt 0:00:22]} 13. Rad1 {[%emt 0:00:14]} Bd7 {[%emt 0:00:16]} 14. c3 {[%emt 0:00:28]} Rac8 {[%emt 0:00:12]} 15. Bd3 {[%emt 0:00:01]} Bd6 {[%emt 0:00:25]} 16. h3 {[%emt 0:00:14]} h6 {[%emt 0:00:02]} 17. Bb5 {[%emt 0:00:26]} a6 {[%emt 0:00:25]} 18. Bxd7 {[%emt 0:00:02]} Qxd7 {[%emt 0:00:08]} 19. Nf3 {[%emt 0:00:32]} Qe7 {[%emt 0:00:11]} 20. Rd2 {[%emt 0:00:10]} Rfd8 {[%emt 0:00:02]} 21. Rfd1 {[%emt 0:00:00]} Bc7 {[%emt 0:01:19]} 22. Bd4 {[%emt 0:00:02]} Bf4 {[%emt 0:00:34]} 23. Rd3 {[%emt 0:00:17]} Bc7 {[%emt 0:00:36]} 24. c4 {[%emt 0:00:48]} e5 {[%emt 0:02:13]} 25. Bxe5 {[%emt 0:00:16]} Rxd3 {[%emt 0:00:12]} 26. Rxd3 {[%emt 0:00:03]} Bxe5 {[%emt 0:00:40]} 27. Qxe5 {[%emt 0:00:04]} Qxe5 {[%emt 0:00:17]} 28. Nxe5 {[%emt 0:00:01]} b5 {[%emt 0:00:38]} 29. b3 {[%emt 0:00:31]} Re8 {[%emt 0:00:17]} 30. Re3 {[%emt 0:00:35]} bxc4 {[%emt 0:00:16]} 31. Nxc4 {[%emt 0:00:04]} Rxe3 {[%emt 0:00:05]} 32. Nxe3 {[%emt 0:00:01]} Kf8 {[%emt 0:00:05]} 33. Kf1 {[%emt 0:00:02]} Ke7 {[%emt 0:00:01]} 34. Ke2 {[%emt 0:00:01]} Kd6 {[%emt 0:00:01]} 35. Nf5+ {[%emt 0:00:17]} Kc5 {[%emt 0:00:01]} 36. a3 {[%emt 0:00:15]} Ne8 {[%emt 0:00:11]} 37. Kd3 {[%emt 0:00:04]} a5 {[%emt 0:00:09]} 38. g4 {[%emt 0:00:28]} f6 {[%emt 0:01:06]} 39. f4 {[%emt 0:00:34]} g5 {[%emt 0:00:24]} 40. Nxh6 {[%emt 0:00:50]} gxf4 {[%emt 0:00:04]} 41. Ke4 {[%emt 0:00:09]} Nd6+ {[%emt 0:00:26]} 42. Kxf4 Kd4 43. b4 {[%emt 0:00:15]} axb4 {[%emt 0:00:07]} 44. axb4 {[%emt 0:00:01]} Kc4 {[%emt 0:00:03]} 45. Ng8 {[%emt 0:00:02]} Ne8 {[%emt 0:00:06]} 46. Kf5 {[%emt 0:00:03]} Kxb4 {[%emt 0:00:02]} 47. h4 {[%emt 0:00:04]} Kc5 {[%emt 0:00:11]} 48. h5 {[%emt 0:00:04]} 1-0